[Event "Titled Tuesday Blitz April 4 Late 2023"]
[White "Castellanos Rodriguez, Renier"]
[Black "Zhigalko, Sergei"]
[WhiteFideId "3404650"]
[BlackFideId "13502956"]
[WhiteElo "2597"]
[BlackElo "2626"]
[Result "0-1"]
[Round "11"]
[TimeControl "180+2"]
[Date "2023.04.04"]
[WhiteClock "0:00:56"]
[BlackClock "0:00:08"]

1. e4 {[%clk 0:03:00]}  c5 {[%clk 0:03:00]} 2. Nf3 {[%clk 0:03:01]}  Nc6 {[%clk 0:03:00]} 3. Bb5 {[%clk 0:02:59]}  Nf6 {[%clk 0:03:00]} 4. Bxc6 {[%clk 0:02:54]}  dxc6 {[%clk 0:03:01]} 5. d3 {[%clk 0:02:55]}  Bg4 {[%clk 0:03:01]} 6. h3 {[%clk 0:02:52]}  Bh5 {[%clk 0:03:01]} 7. Bf4 {[%clk 0:02:49]}  c4 {[%clk 0:02:57]} 8. Nc3 {[%clk 0:02:42]}  e6 {[%clk 0:02:56]} 9. g4 {[%clk 0:02:29]}  Bg6 {[%clk 0:02:56]} 10. Ne5 {[%clk 0:02:25]}  cxd3 {[%clk 0:02:55]} 11. Qxd3 {[%clk 0:02:25]}  Qxd3 {[%clk 0:02:30]} 12. cxd3 {[%clk 0:02:26]}  Nd7 {[%clk 0:02:22]} 13. Nxg6 {[%clk 0:02:16]}  hxg6 {[%clk 0:02:22]} 14. Ke2 {[%clk 0:02:16]}  e5 {[%clk 0:02:15]} 15. Be3 {[%clk 0:02:14]}  Bc5 {[%clk 0:02:04]} 16. h4 {[%clk 0:02:14]}  Ke7 {[%clk 0:01:59]} 17. h5 {[%clk 0:02:06]}  Bxe3 {[%clk 0:01:48]} 18. fxe3 {[%clk 0:02:04]}  gxh5 {[%clk 0:01:48]} 19. gxh5 {[%clk 0:02:04]}  Nf6 {[%clk 0:01:49]} 20. d4 {[%clk 0:01:35]}  Nxh5 {[%clk 0:01:36]} 21. Kd3 {[%clk 0:01:34]}  Rad8 {[%clk 0:01:24]} 22. Kc4 {[%clk 0:01:31]}  Nf6 {[%clk 0:01:18]} 23. Rhg1 {[%clk 0:01:27]}  g6 {[%clk 0:01:13]} 24. Raf1 {[%clk 0:01:26]}  Rh3 {[%clk 0:00:50]} 25. Rf2 {[%clk 0:01:08]}  Rxe3 {[%clk 0:00:25]} 26. dxe5 {[%clk 0:01:08]}  Nxe4 {[%clk 0:00:22]} 27. Re2 {[%clk 0:00:59]}  b5+ {[%clk 0:00:14]} 28. Kb4 {[%clk 0:00:57]}  Rd4+ {[%clk 0:00:11]} 29. Ka5 {[%clk 0:00:56]}  Rxe2 {[%clk 0:00:10]} 30. Nxe2 {[%clk 0:00:56]}  Ra4# {[%clk 0:00:08]} 0-1


[Site "https://www.chess.com"]

[Event "Titled Tuesday Blitz April 4 Late 2023"]
[White "Kilic, Eray"]
[Black "Kravtsiv, Martyn"]
[WhiteFideId "44517173"]
[BlackFideId "14113147"]
[WhiteElo "2328"]
[BlackElo "2695"]
[Result "1/2-1/2"]
[Round "11"]
[TimeControl "180+2"]
[Date "2023.04.04"]
[WhiteClock "0:02:49"]
[BlackClock "0:02:25"]

1. d4 {[%clk 0:02:59]}  b6 {[%clk 0:02:56]} 2. e4 {[%clk 0:02:58]}  Bb7 {[%clk 0:02:57]} 3. Nc3 {[%clk 0:02:59]}  e6 {[%clk 0:02:56]} 4. Nf3 {[%clk 0:02:58]}  Bb4 {[%clk 0:02:54]} 5. Bd3 {[%clk 0:02:58]}  Nf6 {[%clk 0:02:54]} 6. e5 {[%clk 0:02:54]}  Ne4 {[%clk 0:02:53]} 7. Bd2 {[%clk 0:02:53]}  Nxd2 {[%clk 0:02:50]} 8. Qxd2 {[%clk 0:02:53]}  Bxf3 {[%clk 0:02:45]} 9. gxf3 {[%clk 0:02:53]}  Qh4 {[%clk 0:02:45]} 10. a3 {[%clk 0:02:51]}  Bxc3 {[%clk 0:02:39]} 11. Qxc3 {[%clk 0:02:52]}  O-O {[%clk 0:02:25]} 12. Be4 {[%clk 0:02:49]} 1/2-1/2


[Site "https://www.chess.com"]

[Event "Titled Tuesday Blitz April 4 Late 2023"]
[White "Makarian, Rudik"]
[Black "tuschessCM1"]
[WhiteFideId "44105681"]
[WhiteElo "2430"]
[BlackElo "2757"]
[Result "0-1"]
[Round "11"]
[TimeControl "180+2"]
[Date "2023.04.04"]
[WhiteClock "0:00:04"]
[BlackClock "0:00:17"]

1. e4 {[%clk 0:02:59]}  c6 {[%clk 0:02:59]} 2. Nf3 {[%clk 0:02:59]}  d5 {[%clk 0:03:00]} 3. Nc3 {[%clk 0:02:59]}  dxe4 {[%clk 0:03:00]} 4. Nxe4 {[%clk 0:03:00]}  Nf6 {[%clk 0:03:00]} 5. Qe2 {[%clk 0:02:59]}  Nxe4 {[%clk 0:03:00]} 6. Qxe4 {[%clk 0:03:00]}  Qd5 {[%clk 0:03:01]} 7. Qf4 {[%clk 0:02:58]}  Qf5 {[%clk 0:03:01]} 8. Qe3 {[%clk 0:02:59]}  Qe6 {[%clk 0:03:00]} 9. b3 {[%clk 0:02:57]}  Qxe3+ {[%clk 0:02:59]} 10. fxe3 {[%clk 0:02:57]}  f6 {[%clk 0:02:59]} 11. d4 {[%clk 0:02:53]}  a5 {[%clk 0:02:58]} 12. a3 {[%clk 0:02:47]}  Bf5 {[%clk 0:02:55]} 13. Kd2 {[%clk 0:02:43]}  Nd7 {[%clk 0:02:55]} 14. Bd3 {[%clk 0:02:43]}  Bxd3 {[%clk 0:02:54]} 15. Kxd3 {[%clk 0:02:44]}  Rd8 {[%clk 0:02:53]} 16. Bb2 {[%clk 0:02:43]}  e5 {[%clk 0:02:53]} 17. c4 {[%clk 0:02:36]}  Kf7 {[%clk 0:02:49]} 18. Kc2 {[%clk 0:02:34]}  exd4 {[%clk 0:02:47]} 19. exd4 {[%clk 0:02:33]}  Bd6 {[%clk 0:02:47]} 20. Bc3 {[%clk 0:02:33]}  Ra8 {[%clk 0:02:43]} 21. Rhe1 {[%clk 0:02:31]}  Bc7 {[%clk 0:02:41]} 22. b4 {[%clk 0:02:29]}  Nb6 {[%clk 0:02:38]} 23. Kd3 {[%clk 0:02:25]}  a4 {[%clk 0:02:38]} 24. Rab1 {[%clk 0:02:17]}  Rhd8 {[%clk 0:02:30]} 25. g3 {[%clk 0:02:02]}  Nd7 {[%clk 0:02:24]} 26. Kc2 {[%clk 0:01:56]}  b5 {[%clk 0:02:14]} 27. d5 {[%clk 0:01:52]}  Nb6 {[%clk 0:02:06]} 28. d6 {[%clk 0:01:49]}  Bxd6 {[%clk 0:02:06]} 29. c5 {[%clk 0:01:50]}  Nc4 {[%clk 0:02:06]} 30. cxd6 {[%clk 0:01:47]}  Nxa3+ {[%clk 0:02:07]} 31. Kb2 {[%clk 0:01:47]}  Nxb1 {[%clk 0:02:06]} 32. Kxb1 {[%clk 0:01:44]}  Rxd6 {[%clk 0:02:05]} 33. Kc2 {[%clk 0:01:42]}  Rad8 {[%clk 0:02:04]} 34. Rf1 {[%clk 0:01:37]}  Ke6 {[%clk 0:01:57]} 35. Re1+ {[%clk 0:01:36]}  Kf7 {[%clk 0:01:57]} 36. Rf1 {[%clk 0:01:36]}  Ke6 {[%clk 0:01:57]} 37. Nd2 {[%clk 0:01:34]}  Rd3 {[%clk 0:01:54]} 38. Ne4 {[%clk 0:01:33]}  Re3 {[%clk 0:01:54]} 39. Nc5+ {[%clk 0:01:31]}  Kf7 {[%clk 0:01:54]} 40. Rf2 {[%clk 0:01:30]}  Rde8 {[%clk 0:01:52]} 41. Kd2 {[%clk 0:01:27]}  Kg6 {[%clk 0:01:50]} 42. Nd3 {[%clk 0:01:24]}  R3e4 {[%clk 0:01:47]} 43. h4 {[%clk 0:01:15]}  Kh5 {[%clk 0:01:40]} 44. Rg2 {[%clk 0:00:34]}  Kg4 {[%clk 0:01:16]} 45. Rg1 {[%clk 0:00:35]}  Re2+ {[%clk 0:01:09]} 46. Kd1 {[%clk 0:00:27]}  R2e3 {[%clk 0:01:09]} 47. Kc2 {[%clk 0:00:21]}  Rxg3 {[%clk 0:01:04]} 48. Rf1 {[%clk 0:00:16]}  Re2+ {[%clk 0:00:57]} 49. Bd2 {[%clk 0:00:13]}  Rgg2 {[%clk 0:00:33]} 50. Rd1 {[%clk 0:00:12]}  Re4 {[%clk 0:00:33]} 51. Kc3 {[%clk 0:00:07]}  Rg3 {[%clk 0:00:32]} 52. Be1 {[%clk 0:00:04]}  Rc4+ {[%clk 0:00:30]} 53. Kd2 {[%clk 0:00:05]}  Rf3 {[%clk 0:00:27]} 54. Nf2+ {[%clk 0:00:02]}  Kxh4 {[%clk 0:00:24]} 55. Ke2 {[%clk 0:00:03]}  Rf5 {[%clk 0:00:22]} 56. Rd7 {[%clk 0:00:03]}  Kh5 {[%clk 0:00:16]} 57. Rxg7 {[%clk 0:00:02]}  Re5+ {[%clk 0:00:17]} 58. Kf1 {[%clk 0:00:01]}  Kh6 {[%clk 0:00:15]} 59. Rg3 {[%clk 0:00:01]}  Rf5 {[%clk 0:00:14]} 60. Rh3+ {[%clk 0:00:01]}  Kg6 {[%clk 0:00:15]} 61. Rg3+ {[%clk 0:00:02]}  Rg5 {[%clk 0:00:15]} 62. Rd3 {[%clk 0:00:02]}  h5 {[%clk 0:00:15]} 63. Nh3 {[%clk 0:00:02]}  Rf5+ {[%clk 0:00:15]} 64. Kg2 {[%clk 0:00:03]}  Rc2+ {[%clk 0:00:14]} 65. Kg3 {[%clk 0:00:02]}  Re2 {[%clk 0:00:14]} 66. Bf2 {[%clk 0:00:02]}  Re4 {[%clk 0:00:14]} 67. Be3 {[%clk 0:00:02]}  Rg4+ {[%clk 0:00:14]} 68. Kh2 {[%clk 0:00:03]}  Rf3 {[%clk 0:00:14]} 69. Rc3 {[%clk 0:00:02]}  Rh4 {[%clk 0:00:14]} 70. Kg2 {[%clk 0:00:03]}  Rhxh3 {[%clk 0:00:14]} 71. Rxc6 {[%clk 0:00:02]}  Rhg3+ {[%clk 0:00:14]} 72. Kh2 {[%clk 0:00:02]}  Rh3+ {[%clk 0:00:15]} 73. Kg2 {[%clk 0:00:02]}  Rxe3 {[%clk 0:00:16]} 74. Kg1 {[%clk 0:00:02]}  Reg3+ {[%clk 0:00:16]} 75. Kf2 {[%clk 0:00:03]}  Rc3 {[%clk 0:00:17]} 76. Kf1 {[%clk 0:00:04]}  Rxc6 {[%clk 0:00:17]} 77. Kg2 {[%clk 0:00:04]}  Rd3 {[%clk 0:00:17]} 0-1


[Site "https://www.chess.com"]

[Event "Titled Tuesday Blitz April 4 Late 2023"]
[White "Papasimakopoulos, Alexandros"]
[Black "Hansen, Eric"]
[WhiteFideId "4244125"]
[BlackFideId "2606771"]
[WhiteElo "2359"]
[BlackElo "2561"]
[Result "0-1"]
[Round "11"]
[TimeControl "180+2"]
[Date "2023.04.04"]
[WhiteClock "0:00:11"]
[BlackClock "0:00:58"]

1. d4 {[%clk 0:03:00]}  d5 {[%clk 0:02:57]} 2. c4 {[%clk 0:03:00]}  e6 {[%clk 0:02:57]} 3. Nc3 {[%clk 0:03:00]}  Nf6 {[%clk 0:02:57]} 4. cxd5 {[%clk 0:03:01]}  exd5 {[%clk 0:02:58]} 5. Bg5 {[%clk 0:03:01]}  c6 {[%clk 0:02:58]} 6. e3 {[%clk 0:03:02]}  Be7 {[%clk 0:02:57]} 7. Bd3 {[%clk 0:03:02]}  Nbd7 {[%clk 0:02:57]} 8. Qc2 {[%clk 0:03:02]}  h6 {[%clk 0:02:57]} 9. Bh4 {[%clk 0:03:02]}  Nh5 {[%clk 0:02:56]} 10. Bxe7 {[%clk 0:03:02]}  Qxe7 {[%clk 0:02:55]} 11. O-O-O {[%clk 0:03:03]}  Nb6 {[%clk 0:02:55]} 12. Nf3 {[%clk 0:03:02]}  Bg4 {[%clk 0:02:54]} 13. Kb1 {[%clk 0:02:59]}  Bxf3 {[%clk 0:02:51]} 14. gxf3 {[%clk 0:03:00]}  O-O-O {[%clk 0:02:51]} 15. h4 {[%clk 0:02:39]}  Kb8 {[%clk 0:02:51]} 16. Rdg1 {[%clk 0:02:22]}  g5 {[%clk 0:02:42]} 17. Na4 {[%clk 0:02:11]}  Nxa4 {[%clk 0:02:37]} 18. Qxa4 {[%clk 0:02:12]}  Qf6 {[%clk 0:02:37]} 19. Qd1 {[%clk 0:02:10]}  Ng7 {[%clk 0:02:36]} 20. hxg5 {[%clk 0:01:55]}  hxg5 {[%clk 0:02:37]} 21. Be2 {[%clk 0:01:55]}  Ne6 {[%clk 0:02:35]} 22. Qf1 {[%clk 0:01:51]}  c5 {[%clk 0:02:32]} 23. Rxh8 {[%clk 0:01:48]}  Rxh8 {[%clk 0:02:32]} 24. dxc5 {[%clk 0:01:48]}  Nxc5 {[%clk 0:02:31]} 25. Qd1 {[%clk 0:01:45]}  Rd8 {[%clk 0:02:29]} 26. Qd2 {[%clk 0:01:37]}  d4 {[%clk 0:02:25]} 27. exd4 {[%clk 0:01:31]}  Ne6 {[%clk 0:02:25]} 28. d5 {[%clk 0:01:26]}  Qf5+ {[%clk 0:02:25]} 29. Qd3 {[%clk 0:01:22]}  Rxd5 {[%clk 0:02:24]} 30. Qxf5 {[%clk 0:01:15]}  Rxf5 {[%clk 0:02:24]} 31. Rc1 {[%clk 0:01:10]}  Nd4 {[%clk 0:02:21]} 32. Bd1 {[%clk 0:00:50]}  Nxf3 {[%clk 0:02:21]} 33. Rc3 {[%clk 0:00:39]}  Ne5 {[%clk 0:02:10]} 34. f3 {[%clk 0:00:35]}  Rf4 {[%clk 0:02:06]} 35. Kc1 {[%clk 0:00:34]}  Nc6 {[%clk 0:02:02]} 36. Kd2 {[%clk 0:00:30]}  Kc7 {[%clk 0:02:03]} 37. Ke3 {[%clk 0:00:30]}  Kd6 {[%clk 0:02:01]} 38. Rd3+ {[%clk 0:00:30]}  Ke7 {[%clk 0:02:00]} 39. Rd5 {[%clk 0:00:28]}  f6 {[%clk 0:02:00]} 40. a3 {[%clk 0:00:22]}  Ne5 {[%clk 0:01:55]} 41. Be2 {[%clk 0:00:18]}  Rh4 {[%clk 0:01:42]} 42. Rd1 {[%clk 0:00:17]}  Rh2 {[%clk 0:01:36]} 43. Rc1 {[%clk 0:00:16]}  f5 {[%clk 0:01:31]} 44. Re1 {[%clk 0:00:14]}  Kf6 {[%clk 0:01:28]} 45. Kd4 {[%clk 0:00:12]}  Rf2 {[%clk 0:01:20]} 46. Ke3 {[%clk 0:00:12]}  Rh2 {[%clk 0:01:17]} 47. Kd4 {[%clk 0:00:12]}  Ng6 {[%clk 0:00:58]} 48. Ke3 {[%clk 0:00:11]}  Nf4 {[%clk 0:00:57]} 49. Bc4 {[%clk 0:00:11]}  Ng2+ {[%clk 0:00:57]} 50. Kd4 {[%clk 0:00:11]}  Nxe1 {[%clk 0:00:58]} 0-1


[Site "https://www.chess.com"]

[Event "Titled Tuesday Blitz April 4 Late 2023"]
[White "Vakhlamov, Igor L."]
[Black "Thomforde-Toates, Noah"]
[WhiteFideId "24126748"]
[BlackFideId "30951992"]
[WhiteElo "2400"]
[BlackElo "2720"]
[Result "1-0"]
[Round "11"]
[TimeControl "180+2"]
[Date "2023.04.04"]
[WhiteClock "0:01:06"]
[BlackClock "0:00:19"]

1. e4 {[%clk 0:02:59]}  c5 {[%clk 0:02:58]} 2. Nf3 {[%clk 0:03:00]}  g6 {[%clk 0:02:58]} 3. Nc3 {[%clk 0:03:01]}  Bg7 {[%clk 0:02:58]} 4. d4 {[%clk 0:03:01]}  cxd4 {[%clk 0:02:59]} 5. Nxd4 {[%clk 0:03:02]}  Nc6 {[%clk 0:03:00]} 6. Nxc6 {[%clk 0:03:02]}  bxc6 {[%clk 0:02:59]} 7. Bc4 {[%clk 0:03:03]}  e6 {[%clk 0:02:57]} 8. O-O {[%clk 0:03:02]}  Ne7 {[%clk 0:02:57]} 9. Qd6 {[%clk 0:03:00]}  O-O {[%clk 0:02:56]} 10. Bg5 {[%clk 0:02:59]}  f6 {[%clk 0:02:56]} 11. Be3 {[%clk 0:02:59]}  Bb7 {[%clk 0:02:55]} 12. Rad1 {[%clk 0:02:53]}  Nd5 {[%clk 0:02:14]} 13. exd5 {[%clk 0:02:48]}  cxd5 {[%clk 0:02:14]} 14. Bb3 {[%clk 0:02:18]}  Re8 {[%clk 0:02:11]} 15. Rfe1 {[%clk 0:02:19]}  Bf8 {[%clk 0:02:09]} 16. Qg3 {[%clk 0:02:17]}  Qa5 {[%clk 0:02:06]} 17. h4 {[%clk 0:02:16]}  Kf7 {[%clk 0:01:47]} 18. h5 {[%clk 0:02:03]}  Be7 {[%clk 0:01:45]} 19. a3 {[%clk 0:01:57]}  Rg8 {[%clk 0:01:41]} 20. h6 {[%clk 0:01:57]}  Rac8 {[%clk 0:01:38]} 21. Qf3 {[%clk 0:01:53]}  Qa6 {[%clk 0:01:15]} 22. Nxd5 {[%clk 0:01:33]}  exd5 {[%clk 0:01:09]} 23. Rxd5 {[%clk 0:01:34]}  Kf8 {[%clk 0:00:28]} 24. Bd4 {[%clk 0:01:30]}  f5 {[%clk 0:00:21]} 25. Qe3 {[%clk 0:01:22]}  Qe6 {[%clk 0:00:19]} 26. Re5 {[%clk 0:01:06]} 1-0


[Site "https://www.chess.com"]

[Event "Titled Tuesday Blitz April 4 Late 2023"]
[White "Bolourchifard, Farzad"]
[Black "Timmermans, Mark"]
[WhiteFideId "12510084"]
[BlackFideId "1026399"]
[WhiteElo "2317"]
[BlackElo "2460"]
[Result "1-0"]
[Round "11"]
[TimeControl "180+2"]
[Date "2023.04.04"]
[WhiteClock "0:01:13"]
[BlackClock "0:01:40"]

1. e4 {[%clk 0:02:57]}  e5 {[%clk 0:02:59]} 2. Nf3 {[%clk 0:02:58]}  Nc6 {[%clk 0:03:00]} 3. Bc4 {[%clk 0:02:58]}  Nf6 {[%clk 0:03:00]} 4. d3 {[%clk 0:02:58]}  Be7 {[%clk 0:03:01]} 5. O-O {[%clk 0:02:59]}  O-O {[%clk 0:03:01]} 6. Re1 {[%clk 0:03:00]}  d6 {[%clk 0:03:01]} 7. c3 {[%clk 0:03:00]}  Kh8 {[%clk 0:03:02]} 8. h3 {[%clk 0:02:59]}  Ng8 {[%clk 0:03:02]} 9. d4 {[%clk 0:02:59]}  f5 {[%clk 0:03:02]} 10. dxe5 {[%clk 0:02:57]}  fxe4 {[%clk 0:03:03]} 11. Rxe4 {[%clk 0:02:57]}  Rxf3 {[%clk 0:03:03]} 12. gxf3 {[%clk 0:02:46]}  Nxe5 {[%clk 0:02:59]} 13. Rxe5 {[%clk 0:02:18]}  dxe5 {[%clk 0:02:59]} 14. Qxd8 {[%clk 0:02:19]}  Bxd8 {[%clk 0:02:59]} 15. Bxg8 {[%clk 0:02:20]}  Kxg8 {[%clk 0:02:54]} 16. Kg2 {[%clk 0:02:21]}  a5 {[%clk 0:02:49]} 17. Be3 {[%clk 0:02:19]}  a4 {[%clk 0:02:49]} 18. Nd2 {[%clk 0:02:19]}  Be6 {[%clk 0:02:35]} 19. a3 {[%clk 0:02:09]}  h6 {[%clk 0:02:26]} 20. Ne4 {[%clk 0:02:02]}  b6 {[%clk 0:02:25]} 21. Rd1 {[%clk 0:02:00]}  Kf7 {[%clk 0:02:17]} 22. f4 {[%clk 0:01:56]}  exf4 {[%clk 0:01:58]} 23. Bxf4 {[%clk 0:01:56]}  Ra5 {[%clk 0:01:58]} 24. Rxd8 {[%clk 0:01:55]}  Bd5 {[%clk 0:01:52]} 25. f3 {[%clk 0:01:54]}  Ke7 {[%clk 0:01:52]} 26. Bxc7 {[%clk 0:01:52]}  Rb5 {[%clk 0:01:53]} 27. Kg3 {[%clk 0:01:41]}  Bxe4 {[%clk 0:01:46]} 28. fxe4 {[%clk 0:01:41]}  Rxb2 {[%clk 0:01:47]} 29. Rd3 {[%clk 0:01:29]}  b5 {[%clk 0:01:45]} 30. Kf3 {[%clk 0:01:24]}  Ke6 {[%clk 0:01:42]} 31. Bd6 {[%clk 0:01:22]}  h5 {[%clk 0:01:40]} 32. Bf8 {[%clk 0:01:21]}  g5 {[%clk 0:01:40]} 33. Rd5 {[%clk 0:01:21]}  Rb3 {[%clk 0:01:39]} 34. Bb4 {[%clk 0:01:12]}  g4+ {[%clk 0:01:38]} 35. hxg4 {[%clk 0:01:12]}  hxg4+ {[%clk 0:01:39]} 36. Kxg4 {[%clk 0:01:13]}  Rb1 {[%clk 0:01:40]} 37. Rxb5 {[%clk 0:01:13]} 1-0


[Site "https://www.chess.com"]

[Event "Titled Tuesday Blitz April 4 Late 2023"]
[White "Urazayev, Arystanbek"]
[Black "Matinian, Nikita"]
[WhiteFideId "13709810"]
[BlackFideId "24129100"]
[WhiteElo "2449"]
[BlackElo "2422"]
[Result "0-1"]
[Round "11"]
[TimeControl "180+2"]
[Date "2023.04.04"]
[WhiteClock "0:00:05"]
[BlackClock "0:00:05"]

1. e4 {[%clk 0:03:00]}  c5 {[%clk 0:02:59]} 2. Nf3 {[%clk 0:03:01]}  e6 {[%clk 0:03:00]} 3. d4 {[%clk 0:03:01]}  cxd4 {[%clk 0:03:00]} 4. Nxd4 {[%clk 0:03:02]}  Nc6 {[%clk 0:03:01]} 5. Be2 {[%clk 0:03:01]}  Nf6 {[%clk 0:02:59]} 6. Nc3 {[%clk 0:03:01]}  Qc7 {[%clk 0:02:57]} 7. Ndb5 {[%clk 0:03:01]}  Qb8 {[%clk 0:02:56]} 8. f4 {[%clk 0:03:01]}  a6 {[%clk 0:02:55]} 9. Nd4 {[%clk 0:03:01]}  Bc5 {[%clk 0:02:48]} 10. Nxc6 {[%clk 0:02:57]}  bxc6 {[%clk 0:02:49]} 11. e5 {[%clk 0:02:58]}  Nd5 {[%clk 0:02:49]} 12. Qd3 {[%clk 0:02:35]}  Nxc3 {[%clk 0:02:34]} 13. bxc3 {[%clk 0:02:34]}  a5 {[%clk 0:02:21]} 14. Be3 {[%clk 0:02:31]}  Ba6 {[%clk 0:02:17]} 15. Qd2 {[%clk 0:02:31]}  Bxe3 {[%clk 0:02:14]} 16. Qxe3 {[%clk 0:02:32]}  Bxe2 {[%clk 0:02:13]} 17. Kxe2 {[%clk 0:02:32]}  O-O {[%clk 0:01:32]} 18. Rab1 {[%clk 0:02:30]}  Qd8 {[%clk 0:01:30]} 19. Rhd1 {[%clk 0:02:28]}  f6 {[%clk 0:01:29]} 20. Kf2 {[%clk 0:02:11]}  fxe5 {[%clk 0:01:22]} 21. Qxe5 {[%clk 0:02:12]}  Rf5 {[%clk 0:00:59]} 22. Qd6 {[%clk 0:02:10]}  Qh4+ {[%clk 0:00:45]} 23. Kg1 {[%clk 0:02:10]}  Raf8 {[%clk 0:00:42]} 24. g3 {[%clk 0:02:03]}  Qg4 {[%clk 0:00:38]} 25. Rd4 {[%clk 0:01:44]}  c5 {[%clk 0:00:34]} 26. Rd2 {[%clk 0:01:20]}  Rxf4 {[%clk 0:00:33]} 27. Qxd7 {[%clk 0:01:19]}  R4f7 {[%clk 0:00:20]} 28. Qd6 {[%clk 0:01:15]}  Qc4 {[%clk 0:00:19]} 29. Qd3 {[%clk 0:01:01]}  Qxa2 {[%clk 0:00:17]} 30. Re1 {[%clk 0:00:59]}  a4 {[%clk 0:00:13]} 31. c4 {[%clk 0:00:58]}  Qb2 {[%clk 0:00:12]} 32. c3 {[%clk 0:00:59]}  Qb6 {[%clk 0:00:10]} 33. Ra2 {[%clk 0:00:55]}  Qc6 {[%clk 0:00:07]} 34. Qd1 {[%clk 0:00:47]}  a3 {[%clk 0:00:03]} 35. Qg4 {[%clk 0:00:43]}  h5 {[%clk 0:00:02]} 36. Qxh5 {[%clk 0:00:35]}  Rf3 {[%clk 0:00:02]} 37. Qg4 {[%clk 0:00:34]}  Rxc3 {[%clk 0:00:02]} 38. Qxe6+ {[%clk 0:00:30]}  Qxe6 {[%clk 0:00:02]} 39. Rxe6 {[%clk 0:00:31]}  Rb8 {[%clk 0:00:02]} 40. Ree2 {[%clk 0:00:29]}  Rbb3 {[%clk 0:00:02]} 41. Kg2 {[%clk 0:00:23]}  Rxc4 {[%clk 0:00:02]} 42. Kh3 {[%clk 0:00:22]}  Kh7 {[%clk 0:00:03]} 43. Re7 {[%clk 0:00:20]}  Rcb4 {[%clk 0:00:03]} 44. Ra7 {[%clk 0:00:20]}  c4 {[%clk 0:00:02]} 45. R7xa3 {[%clk 0:00:19]}  c3 {[%clk 0:00:02]} 46. Rxb3 {[%clk 0:00:19]}  Rxb3 {[%clk 0:00:03]} 47. Rc2 {[%clk 0:00:19]}  Kg6 {[%clk 0:00:04]} 48. g4 {[%clk 0:00:17]}  Kf6 {[%clk 0:00:03]} 49. Kh4 {[%clk 0:00:17]}  Ke5 {[%clk 0:00:04]} 50. Kg5 {[%clk 0:00:16]}  Kd4 {[%clk 0:00:04]} 51. Kg6 {[%clk 0:00:14]}  Kd3 {[%clk 0:00:05]} 52. Rg2 {[%clk 0:00:14]}  Rb2 {[%clk 0:00:05]} 53. Rg3+ {[%clk 0:00:13]}  Kd4 {[%clk 0:00:06]} 54. h4 {[%clk 0:00:14]}  c2 {[%clk 0:00:06]} 55. g5 {[%clk 0:00:03]}  c1=Q {[%clk 0:00:05]} 56. Kxg7 {[%clk 0:00:02]}  Qc7+ {[%clk 0:00:05]} 57. Kh6 {[%clk 0:00:03]}  Qxg3 {[%clk 0:00:06]} 58. h5 {[%clk 0:00:04]}  Rb6+ {[%clk 0:00:05]} 59. g6 {[%clk 0:00:05]}  Qf4+ {[%clk 0:00:05]} 60. Kh7 {[%clk 0:00:05]}  Qg5 {[%clk 0:00:05]} 61. h6 {[%clk 0:00:04]}  Qxg6+ {[%clk 0:00:05]} 62. Kh8 {[%clk 0:00:05]}  Rb8# {[%clk 0:00:05]} 0-1


[Site "https://www.chess.com"]

[Event "Titled Tuesday Blitz April 4 Late 2023"]
[White "Jaracz, Pawel"]
[Black "Goltsev, Dmitry"]
[WhiteFideId "1102222"]
[BlackFideId "24176710"]
[WhiteElo "2438"]
[BlackElo "2336"]
[Result "0-1"]
[Round "11"]
[TimeControl "180+2"]
[Date "2023.04.04"]
[WhiteClock "0:00:09"]
[BlackClock "0:00:11"]

1. e4 {[%clk 0:03:00]}  e6 {[%clk 0:02:59]} 2. d4 {[%clk 0:02:59]}  d5 {[%clk 0:03:00]} 3. Nd2 {[%clk 0:02:58]}  c5 {[%clk 0:03:00]} 4. Ngf3 {[%clk 0:02:53]}  Nf6 {[%clk 0:03:00]} 5. exd5 {[%clk 0:02:51]}  exd5 {[%clk 0:02:59]} 6. Bb5+ {[%clk 0:02:50]}  Nc6 {[%clk 0:02:54]} 7. O-O {[%clk 0:02:50]}  Be7 {[%clk 0:02:54]} 8. dxc5 {[%clk 0:02:49]}  Bxc5 {[%clk 0:02:54]} 9. Nb3 {[%clk 0:02:50]}  Bb6 {[%clk 0:02:54]} 10. Bg5 {[%clk 0:02:49]}  O-O {[%clk 0:02:53]} 11. Re1 {[%clk 0:02:42]}  Bg4 {[%clk 0:02:51]} 12. h3 {[%clk 0:02:38]}  Bh5 {[%clk 0:02:51]} 13. Bh4 {[%clk 0:02:29]}  Qd6 {[%clk 0:02:51]} 14. Be2 {[%clk 0:02:24]}  h6 {[%clk 0:02:48]} 15. Nfd4 {[%clk 0:02:19]}  Bxe2 {[%clk 0:02:38]} 16. Rxe2 {[%clk 0:02:18]}  Nxd4 {[%clk 0:02:26]} 17. Nxd4 {[%clk 0:02:17]}  Ne4 {[%clk 0:02:26]} 18. f3 {[%clk 0:02:06]}  Qf4 {[%clk 0:02:16]} 19. Be1 {[%clk 0:01:38]}  Bxd4+ {[%clk 0:02:07]} 20. Qxd4 {[%clk 0:01:37]}  Ng3 {[%clk 0:02:07]} 21. Qd2 {[%clk 0:01:22]}  Nxe2+ {[%clk 0:02:05]} 22. Qxe2 {[%clk 0:01:22]}  Qd4+ {[%clk 0:02:05]} 23. Bf2 {[%clk 0:01:18]}  Qxb2 {[%clk 0:02:05]} 24. Rd1 {[%clk 0:01:17]}  Qxa2 {[%clk 0:02:04]} 25. Bd4 {[%clk 0:01:17]}  Rfe8 {[%clk 0:02:00]} 26. Qf2 {[%clk 0:01:17]}  Re6 {[%clk 0:01:57]} 27. Kh2 {[%clk 0:01:17]}  Rc8 {[%clk 0:01:55]} 28. Rd2 {[%clk 0:01:16]}  Qb1 {[%clk 0:01:53]} 29. Qg3 {[%clk 0:01:13]}  Rg6 {[%clk 0:01:53]} 30. Qf2 {[%clk 0:01:09]}  a5 {[%clk 0:01:50]} 31. h4 {[%clk 0:01:08]}  a4 {[%clk 0:01:49]} 32. h5 {[%clk 0:01:07]}  Rg5 {[%clk 0:01:50]} 33. g4 {[%clk 0:01:07]}  a3 {[%clk 0:01:48]} 34. c3 {[%clk 0:01:06]}  Ra8 {[%clk 0:01:41]} 35. Ra2 {[%clk 0:01:03]}  Qd1 {[%clk 0:01:17]} 36. Kg3 {[%clk 0:01:00]}  b5 {[%clk 0:01:07]} 37. Qe3 {[%clk 0:00:42]}  Qb1 {[%clk 0:01:03]} 38. Qe2 {[%clk 0:00:42]}  b4 {[%clk 0:01:00]} 39. cxb4 {[%clk 0:00:29]}  Qxb4 {[%clk 0:01:01]} 40. Qd3 {[%clk 0:00:25]}  Qc4 {[%clk 0:00:58]} 41. Qd2 {[%clk 0:00:25]}  Ra4 {[%clk 0:00:46]} 42. Be3 {[%clk 0:00:20]}  Re5 {[%clk 0:00:44]} 43. Bf4 {[%clk 0:00:18]}  Re8 {[%clk 0:00:31]} 44. Rc2 {[%clk 0:00:15]}  Qb3 {[%clk 0:00:23]} 45. Rc3 {[%clk 0:00:13]}  Qb4 {[%clk 0:00:18]} 46. Bxh6 {[%clk 0:00:12]}  gxh6 {[%clk 0:00:12]} 47. Qxh6 {[%clk 0:00:09]}  Qxc3 {[%clk 0:00:11]} 48. Qg5+ {[%clk 0:00:09]}  Qg7 {[%clk 0:00:11]} 49. Qxd5 {[%clk 0:00:09]}  Qe5+ {[%clk 0:00:11]} 0-1


[Site "https://www.chess.com"]